{"text_format":"3","workbook":"xlsx","n_sheets":3,"sheets":["Распорядок дня","Планировщик событий","Интервалы времени"],"not_rendered":{"defined_names":21},"read":"whole","date_system":"1900"}

{"sheet":"Распорядок дня","index":0,"n_rows":76,"n_cols":13,"rows_kept":76,"merged":[[0,1,0,2],[1,1,5,2],[2,12,4,12],[3,7,4,7],[5,12,7,12],[6,1,8,2],[8,12,10,12],[9,7,10,7],[10,1,10,2],[11,12,13,12],[14,12,16,12],[15,7,16,7],[17,12,19,12],[18,1,18,2],[20,12,22,12],[21,7,22,7],[23,12,25,12],[24,1,24,2],[25,1,25,2],[26,7,27,7],[26,12,28,12],[29,12,31,12],[31,7,32,7],[32,12,34,12]]}
[null,"Распорядок дня"]
[null,{"$f":"IFERROR(DAY(ЗначДаты),\"\")","v":23},null,null,"Время",{"$f":"IFERROR(UPPER(TEXT(DATE(ReportYear,НомерМесяца,ReportDay),\"ДД ММММ ГГГГ \")),\"\")","v":"23 ИЮНЬ 2022 "},null,"ОБЗОР НЕДЕЛИ",{"$nulls":3},"ЗАМЕТКИ / СПИСОК ДЕЛ"]
[{"$nulls":4},"Время","Описание",null,{"$f":"IFERROR(TEXT(DATEVALUE(ЗначДаты)+1,\"ДДДД\"),\"\")","v":"пятница"},{"$f":"IFERROR(INDEX(ПланировщикСобытий[],MATCH($H$6&\"|\"&ROW(A1),ПланировщикСобытий[УНИКАЛЬНОЕ ЗНАЧЕНИЕ (ВЫЧИСЛЯЕМОЕ)],0),2),\"\")","v":""},{"$f":"IFERROR(INDEX(ПланировщикСобытий[],MATCH($H$6&\"|\"&ROW(A1),ПланировщикСобытий[УНИКАЛЬНОЕ ЗНАЧЕНИЕ (ВЫЧИСЛЯЕМОЕ)],0),3),\"\")","v":""},null,null,"Зайти в химчистку"]
[{"$nulls":4},{"$f":"'Интервалы времени'!E3","v":"06:00:00"},{"$f":"IFERROR(INDEX(ПланировщикСобытий[],MATCH(DATEVALUE(ЗначДаты)&РаспорядокДня[[#This Row],[Время]],ПоискДатыИВремени,0),3),\"\")","v":"Подъем"},null,{"$f":"IFERROR(TEXT(DATEVALUE(ЗначДаты)+1,\"Д\"),\"\")","v":"24"},{"$f":"IFERROR(INDEX(ПланировщикСобытий[],MATCH($H$6&\"|\"&ROW(A2),ПланировщикСобытий[УНИКАЛЬНОЕ ЗНАЧЕНИЕ (ВЫЧИСЛЯЕМОЕ)],0),2),\"\")","v":"06:30:00"},{"$f":"IFERROR(INDEX(ПланировщикСобытий[],MATCH($H$6&\"|\"&ROW(A2),ПланировщикСобытий[УНИКАЛЬНОЕ ЗНАЧЕНИЕ (ВЫЧИСЛЯЕМОЕ)],0),3),\"\")","v":"Завтрак"}]
[{"$nulls":4},{"$f":"'Интервалы времени'!E4","v":"06:15:00"},{"$f":"IFERROR(INDEX(ПланировщикСобытий[],MATCH(DATEVALUE(ЗначДаты)&РаспорядокДня[[#This Row],[Время]],ПоискДатыИВремени,0),3),\"\")","v":""},null,null,{"$f":"IFERROR(INDEX(ПланировщикСобытий[],MATCH($H$6&\"|\"&ROW(A3),ПланировщикСобытий[УНИКАЛЬНОЕ ЗНАЧЕНИЕ (ВЫЧИСЛЯЕМОЕ)],0),2),\"\")","v":""},{"$f":"IFERROR(INDEX(ПланировщикСобытий[],MATCH($H$6&\"|\"&ROW(A3),ПланировщикСобытий[УНИКАЛЬНОЕ ЗНАЧЕНИЕ (ВЫЧИСЛЯЕМОЕ)],0),3),\"\")","v":""}]
[{"$nulls":4},{"$f":"'Интервалы времени'!E5","v":"06:30:00"},{"$f":"IFERROR(INDEX(ПланировщикСобытий[],MATCH(DATEVALUE(ЗначДаты)&РаспорядокДня[[#This Row],[Время]],ПоискДатыИВремени,0),3),\"\")","v":"Душ"},null,{"$f":"IFERROR(ЗначДаты+1,\"\")","v":"2022-06-24"},{"$f":"IFERROR(INDEX(ПланировщикСобытий[],MATCH($H$6&\"|\"&ROW(A4),ПланировщикСобытий[УНИКАЛЬНОЕ ЗНАЧЕНИЕ (ВЫЧИСЛЯЕМОЕ)],0),2),\"\")","v":""},{"$f":"IFERROR(INDEX(ПланировщикСобытий[],MATCH($H$6&\"|\"&ROW(A4),ПланировщикСобытий[УНИКАЛЬНОЕ ЗНАЧЕНИЕ (ВЫЧИСЛЯЕМОЕ)],0),3),\"\")","v":""},null,null,"Позвонить поставщику услуг кабельного ТВ"]
[null,{"$f":"IFERROR(TEXT(ЗначДаты,\"ДДДДД\"),\"\")","v":"четверг"},null,null,{"$f":"'Интервалы времени'!E6","v":"06:45:00"},{"$f":"IFERROR(INDEX(ПланировщикСобытий[],MATCH(DATEVALUE(ЗначДаты)&РаспорядокДня[[#This Row],[Время]],ПоискДатыИВремени,0),3),\"\")","v":""},null,null,{"$f":"IFERROR(INDEX(ПланировщикСобытий[],MATCH($H$6&\"|\"&ROW(A5),ПланировщикСобытий[УНИКАЛЬНОЕ ЗНАЧЕНИЕ (ВЫЧИСЛЯЕМОЕ)],0),2),\"\")","v":""},{"$f":"IFERROR(INDEX(ПланировщикСобытий[],MATCH($H$6&\"|\"&ROW(A5),ПланировщикСобытий[УНИКАЛЬНОЕ ЗНАЧЕНИЕ (ВЫЧИСЛЯЕМОЕ)],0),3),\"\")","v":""}]
[{"$nulls":4},{"$f":"'Интервалы времени'!E7","v":"07:00:00"},{"$f":"IFERROR(INDEX(ПланировщикСобытий[],MATCH(DATEVALUE(ЗначДаты)&РаспорядокДня[[#This Row],[Время]],ПоискДатыИВремени,0),3),\"\")","v":""},null,null,{"$f":"IFERROR(INDEX(ПланировщикСобытий[],MATCH($H$6&\"|\"&ROW(A6),ПланировщикСобытий[УНИКАЛЬНОЕ ЗНАЧЕНИЕ (ВЫЧИСЛЯЕМОЕ)],0),2),\"\")","v":""},{"$f":"IFERROR(INDEX(ПланировщикСобытий[],MATCH($H$6&\"|\"&ROW(A6),ПланировщикСобытий[УНИКАЛЬНОЕ ЗНАЧЕНИЕ (ВЫЧИСЛЯЕМОЕ)],0),3),\"\")","v":""}]
[{"$nulls":4},{"$f":"'Интервалы времени'!E8","v":"07:15:00"},{"$f":"IFERROR(INDEX(ПланировщикСобытий[],MATCH(DATEVALUE(ЗначДаты)&РаспорядокДня[[#This Row],[Время]],ПоискДатыИВремени,0),3),\"\")","v":""},null,{"$f":"IFERROR(TEXT(DATEVALUE(ЗначДаты)+2,\"ДДДД\"),\"\")","v":"суббота"},{"$f":"IFERROR(INDEX(ПланировщикСобытий[],MATCH($H$12&\"|\"&ROW(A1),ПланировщикСобытий[УНИКАЛЬНОЕ ЗНАЧЕНИЕ (ВЫЧИСЛЯЕМОЕ)],0),2),\"\")","v":""},{"$f":"IFERROR(INDEX(ПланировщикСобытий[],MATCH($H$12&\"|\"&ROW(A1),ПланировщикСобытий[УНИКАЛЬНОЕ ЗНАЧЕНИЕ (ВЫЧИСЛЯЕМОЕ)],0),3),\"\")","v":""}]
[{"$nulls":4},{"$f":"'Интервалы времени'!E9","v":"07:30:00"},{"$f":"IFERROR(INDEX(ПланировщикСобытий[],MATCH(DATEVALUE(ЗначДаты)&РаспорядокДня[[#This Row],[Время]],ПоискДатыИВремени,0),3),\"\")","v":"Выход на работу"},null,{"$f":"IFERROR(TEXT(DATEVALUE(ЗначДаты)+2,\"Д\"),\"\")","v":"25"},{"$f":"IFERROR(INDEX(ПланировщикСобытий[],MATCH($H$12&\"|\"&ROW(A2),ПланировщикСобытий[УНИКАЛЬНОЕ ЗНАЧЕНИЕ (ВЫЧИСЛЯЕМОЕ)],0),2),\"\")","v":""},{"$f":"IFERROR(INDEX(ПланировщикСобытий[],MATCH($H$12&\"|\"&ROW(A2),ПланировщикСобытий[УНИКАЛЬНОЕ ЗНАЧЕНИЕ (ВЫЧИСЛЯЕМОЕ)],0),3),\"\")","v":""}]
[null,"ПРОСМОТР РАСПИСАНИЯ",null,null,{"$f":"'Интервалы времени'!E10","v":"07:45:00"},{"$f":"IFERROR(INDEX(ПланировщикСобытий[],MATCH(DATEVALUE(ЗначДаты)&РаспорядокДня[[#This Row],[Время]],ПоискДатыИВремени,0),3),\"\")","v":""},null,null,{"$f":"IFERROR(INDEX(ПланировщикСобытий[],MATCH($H$12&\"|\"&ROW(A3),ПланировщикСобытий[УНИКАЛЬНОЕ ЗНАЧЕНИЕ (ВЫЧИСЛЯЕМОЕ)],0),2),\"\")","v":""},{"$f":"IFERROR(INDEX(ПланировщикСобытий[],MATCH($H$12&\"|\"&ROW(A3),ПланировщикСобытий[УНИКАЛЬНОЕ ЗНАЧЕНИЕ (ВЫЧИСЛЯЕМОЕ)],0),3),\"\")","v":""}]
[{"$nulls":4},{"$f":"'Интервалы времени'!E11","v":"08:00:00"},{"$f":"IFERROR(INDEX(ПланировщикСобытий[],MATCH(DATEVALUE(ЗначДаты)&РаспорядокДня[[#This Row],[Время]],ПоискДатыИВремени,0),3),\"\")","v":"Начало смены"},null,{"$f":"IFERROR(ЗначДаты+2,\"\")","v":"2022-06-25"},{"$f":"IFERROR(INDEX(ПланировщикСобытий[],MATCH($H$12&\"|\"&ROW(A4),ПланировщикСобытий[УНИКАЛЬНОЕ ЗНАЧЕНИЕ (ВЫЧИСЛЯЕМОЕ)],0),2),\"\")","v":""},{"$f":"IFERROR(INDEX(ПланировщикСобытий[],MATCH($H$12&\"|\"&ROW(A4),ПланировщикСобытий[УНИКАЛЬНОЕ ЗНАЧЕНИЕ (ВЫЧИСЛЯЕМОЕ)],0),3),\"\")","v":""}]
[null,"Год",null,null,{"$f":"'Интервалы времени'!E12","v":"08:15:00"},{"$f":"IFERROR(INDEX(ПланировщикСобытий[],MATCH(DATEVALUE(ЗначДаты)&РаспорядокДня[[#This Row],[Время]],ПоискДатыИВремени,0),3),\"\")","v":""},null,null,{"$f":"IFERROR(INDEX(ПланировщикСобытий[],MATCH($H$12&\"|\"&ROW(A5),ПланировщикСобытий[УНИКАЛЬНОЕ ЗНАЧЕНИЕ (ВЫЧИСЛЯЕМОЕ)],0),2),\"\")","v":""},{"$f":"IFERROR(INDEX(ПланировщикСобытий[],MATCH($H$12&\"|\"&ROW(A5),ПланировщикСобытий[УНИКАЛЬНОЕ ЗНАЧЕНИЕ (ВЫЧИСЛЯЕМОЕ)],0),3),\"\")","v":""}]
[{"$nulls":4},{"$f":"'Интервалы времени'!E13","v":"08:30:00"},{"$f":"IFERROR(INDEX(ПланировщикСобытий[],MATCH(DATEVALUE(ЗначДаты)&РаспорядокДня[[#This Row],[Время]],ПоискДатыИВремени,0),3),\"\")","v":""},null,null,{"$f":"IFERROR(INDEX(ПланировщикСобытий[],MATCH($H$12&\"|\"&ROW(A6),ПланировщикСобытий[УНИКАЛЬНОЕ ЗНАЧЕНИЕ (ВЫЧИСЛЯЕМОЕ)],0),2),\"\")","v":""},{"$f":"IFERROR(INDEX(ПланировщикСобытий[],MATCH($H$12&\"|\"&ROW(A6),ПланировщикСобытий[УНИКАЛЬНОЕ ЗНАЧЕНИЕ (ВЫЧИСЛЯЕМОЕ)],0),3),\"\")","v":""}]
[null,"Месяц",null,null,{"$f":"'Интервалы времени'!E14","v":"08:45:00"},{"$f":"IFERROR(INDEX(ПланировщикСобытий[],MATCH(DATEVALUE(ЗначДаты)&РаспорядокДня[[#This Row],[Время]],ПоискДатыИВремени,0),3),\"\")","v":""},null,{"$f":"IFERROR(TEXT(DATEVALUE(ЗначДаты)+3,\"ДДДД\"),\"\")","v":"воскресенье"},{"$f":"IFERROR(INDEX(ПланировщикСобытий[],MATCH($H$18&\"|\"&ROW(A1),ПланировщикСобытий[УНИКАЛЬНОЕ ЗНАЧЕНИЕ (ВЫЧИСЛЯЕМОЕ)],0),2),\"\")","v":""},{"$f":"IFERROR(INDEX(ПланировщикСобытий[],MATCH($H$18&\"|\"&ROW(A1),ПланировщикСобытий[УНИКАЛЬНОЕ ЗНАЧЕНИЕ (ВЫЧИСЛЯЕМОЕ)],0),3),\"\")","v":""}]
[{"$nulls":4},{"$f":"'Интервалы времени'!E15","v":"09:00:00"},{"$f":"IFERROR(INDEX(ПланировщикСобытий[],MATCH(DATEVALUE(ЗначДаты)&РаспорядокДня[[#This Row],[Время]],ПоискДатыИВремени,0),3),\"\")","v":""},null,{"$f":"IFERROR(TEXT(DATEVALUE(ЗначДаты)+3,\"Д\"),\"\")","v":"26"},{"$f":"IFERROR(INDEX(ПланировщикСобытий[],MATCH($H$18&\"|\"&ROW(A2),ПланировщикСобытий[УНИКАЛЬНОЕ ЗНАЧЕНИЕ (ВЫЧИСЛЯЕМОЕ)],0),2),\"\")","v":""},{"$f":"IFERROR(INDEX(ПланировщикСобытий[],MATCH($H$18&\"|\"&ROW(A2),ПланировщикСобытий[УНИКАЛЬНОЕ ЗНАЧЕНИЕ (ВЫЧИСЛЯЕМОЕ)],0),3),\"\")","v":""}]
[null,"День",null,null,{"$f":"'Интервалы времени'!E16","v":"09:15:00"},{"$f":"IFERROR(INDEX(ПланировщикСобытий[],MATCH(DATEVALUE(ЗначДаты)&РаспорядокДня[[#This Row],[Время]],ПоискДатыИВремени,0),3),\"\")","v":""},null,null,{"$f":"IFERROR(INDEX(ПланировщикСобытий[],MATCH($H$18&\"|\"&ROW(A3),ПланировщикСобытий[УНИКАЛЬНОЕ ЗНАЧЕНИЕ (ВЫЧИСЛЯЕМОЕ)],0),2),\"\")","v":""},{"$f":"IFERROR(INDEX(ПланировщикСобытий[],MATCH($H$18&\"|\"&ROW(A3),ПланировщикСобытий[УНИКАЛЬНОЕ ЗНАЧЕНИЕ (ВЫЧИСЛЯЕМОЕ)],0),3),\"\")","v":""}]
[{"$nulls":4},{"$f":"'Интервалы времени'!E17","v":"09:30:00"},{"$f":"IFERROR(INDEX(ПланировщикСобытий[],MATCH(DATEVALUE(ЗначДаты)&РаспорядокДня[[#This Row],[Время]],ПоискДатыИВремени,0),3),\"\")","v":""},null,{"$f":"IFERROR(ЗначДаты+3,\"\")","v":"2022-06-26"},{"$f":"IFERROR(INDEX(ПланировщикСобытий[],MATCH($H$18&\"|\"&ROW(A4),ПланировщикСобытий[УНИКАЛЬНОЕ ЗНАЧЕНИЕ (ВЫЧИСЛЯЕМОЕ)],0),2),\"\")","v":""},{"$f":"IFERROR(INDEX(ПланировщикСобытий[],MATCH($H$18&\"|\"&ROW(A4),ПланировщикСобытий[УНИКАЛЬНОЕ ЗНАЧЕНИЕ (ВЫЧИСЛЯЕМОЕ)],0),3),\"\")","v":""}]
[null,"ИЗМЕНЕНИЕ РАСПИСАНИЯ",null,null,{"$f":"'Интервалы времени'!E18","v":"09:45:00"},{"$f":"IFERROR(INDEX(ПланировщикСобытий[],MATCH(DATEVALUE(ЗначДаты)&РаспорядокДня[[#This Row],[Время]],ПоискДатыИВремени,0),3),\"\")","v":""},null,null,{"$f":"IFERROR(INDEX(ПланировщикСобытий[],MATCH($H$18&\"|\"&ROW(A5),ПланировщикСобытий[УНИКАЛЬНОЕ ЗНАЧЕНИЕ (ВЫЧИСЛЯЕМОЕ)],0),2),\"\")","v":""},{"$f":"IFERROR(INDEX(ПланировщикСобытий[],MATCH($H$18&\"|\"&ROW(A5),ПланировщикСобытий[УНИКАЛЬНОЕ ЗНАЧЕНИЕ (ВЫЧИСЛЯЕМОЕ)],0),3),\"\")","v":""}]
[{"$nulls":4},{"$f":"'Интервалы времени'!E19","v":"10:00:00"},{"$f":"IFERROR(INDEX(ПланировщикСобытий[],MATCH(DATEVALUE(ЗначДаты)&РаспорядокДня[[#This Row],[Время]],ПоискДатыИВремени,0),3),\"\")","v":"Перерыв"},null,null,{"$f":"IFERROR(INDEX(ПланировщикСобытий[],MATCH($H$18&\"|\"&ROW(A6),ПланировщикСобытий[УНИКАЛЬНОЕ ЗНАЧЕНИЕ (ВЫЧИСЛЯЕМОЕ)],0),2),\"\")","v":""},{"$f":"IFERROR(INDEX(ПланировщикСобытий[],MATCH($H$18&\"|\"&ROW(A6),ПланировщикСобытий[УНИКАЛЬНОЕ ЗНАЧЕНИЕ (ВЫЧИСЛЯЕМОЕ)],0),3),\"\")","v":""}]
[null,"Выберите для изменения интервалов времени",null,null,{"$f":"'Интервалы времени'!E20","v":"10:15:00"},{"$f":"IFERROR(INDEX(ПланировщикСобытий[],MATCH(DATEVALUE(ЗначДаты)&РаспорядокДня[[#This Row],[Время]],ПоискДатыИВремени,0),3),\"\")","v":""},null,{"$f":"IFERROR(TEXT(DATEVALUE(ЗначДаты)+4,\"ДДДД\"),\"\")","v":"понедельник"},{"$f":"IFERROR(INDEX(ПланировщикСобытий[],MATCH($H$24&\"|\"&ROW(A1),ПланировщикСобытий[УНИКАЛЬНОЕ ЗНАЧЕНИЕ (ВЫЧИСЛЯЕМОЕ)],0),2),\"\")","v":""},{"$f":"IFERROR(INDEX(ПланировщикСобытий[],MATCH($H$24&\"|\"&ROW(A1),ПланировщикСобытий[УНИКАЛЬНОЕ ЗНАЧЕНИЕ (ВЫЧИСЛЯЕМОЕ)],0),3),\"\")","v":""}]
[{"$nulls":4},{"$f":"'Интервалы времени'!E21","v":"10:30:00"},{"$f":"IFERROR(INDEX(ПланировщикСобытий[],MATCH(DATEVALUE(ЗначДаты)&РаспорядокДня[[#This Row],[Время]],ПоискДатыИВремени,0),3),\"\")","v":""},null,{"$f":"IFERROR(TEXT(DATEVALUE(ЗначДаты)+4,\"Д\"),\"\")","v":"27"},{"$f":"IFERROR(INDEX(ПланировщикСобытий[],MATCH($H$24&\"|\"&ROW(A2),ПланировщикСобытий[УНИКАЛЬНОЕ ЗНАЧЕНИЕ (ВЫЧИСЛЯЕМОЕ)],0),2),\"\")","v":""},{"$f":"IFERROR(INDEX(ПланировщикСобытий[],MATCH($H$24&\"|\"&ROW(A2),ПланировщикСобытий[УНИКАЛЬНОЕ ЗНАЧЕНИЕ (ВЫЧИСЛЯЕМОЕ)],0),3),\"\")","v":""}]
[null,"Выберите для добавления нового события",null,null,{"$f":"'Интервалы времени'!E22","v":"10:45:00"},{"$f":"IFERROR(INDEX(ПланировщикСобытий[],MATCH(DATEVALUE(ЗначДаты)&РаспорядокДня[[#This Row],[Время]],ПоискДатыИВремени,0),3),\"\")","v":""},null,null,{"$f":"IFERROR(INDEX(ПланировщикСобытий[],MATCH($H$24&\"|\"&ROW(A3),ПланировщикСобытий[УНИКАЛЬНОЕ ЗНАЧЕНИЕ (ВЫЧИСЛЯЕМОЕ)],0),2),\"\")","v":""},{"$f":"IFERROR(INDEX(ПланировщикСобытий[],MATCH($H$24&\"|\"&ROW(A3),ПланировщикСобытий[УНИКАЛЬНОЕ ЗНАЧЕНИЕ (ВЫЧИСЛЯЕМОЕ)],0),3),\"\")","v":""}]
[{"$nulls":4},{"$f":"'Интервалы времени'!E23","v":"11:00:00"},{"$f":"IFERROR(INDEX(ПланировщикСобытий[],MATCH(DATEVALUE(ЗначДаты)&РаспорядокДня[[#This Row],[Время]],ПоискДатыИВремени,0),3),\"\")","v":""},null,{"$f":"IFERROR(ЗначДаты+4,\"\")","v":"2022-06-27"},{"$f":"IFERROR(INDEX(ПланировщикСобытий[],MATCH($H$24&\"|\"&ROW(A4),ПланировщикСобытий[УНИКАЛЬНОЕ ЗНАЧЕНИЕ (ВЫЧИСЛЯЕМОЕ)],0),2),\"\")","v":""},{"$f":"IFERROR(INDEX(ПланировщикСобытий[],MATCH($H$24&\"|\"&ROW(A4),ПланировщикСобытий[УНИКАЛЬНОЕ ЗНАЧЕНИЕ (ВЫЧИСЛЯЕМОЕ)],0),3),\"\")","v":""}]
[null,"ВАЖНОЕ В РАСПИСАНИИ:",null,null,{"$f":"'Интервалы времени'!E24","v":"11:15:00"},{"$f":"IFERROR(INDEX(ПланировщикСобытий[],MATCH(DATEVALUE(ЗначДаты)&РаспорядокДня[[#This Row],[Время]],ПоискДатыИВремени,0),3),\"\")","v":""},null,null,{"$f":"IFERROR(INDEX(ПланировщикСобытий[],MATCH($H$24&\"|\"&ROW(A5),ПланировщикСобытий[УНИКАЛЬНОЕ ЗНАЧЕНИЕ (ВЫЧИСЛЯЕМОЕ)],0),2),\"\")","v":""},{"$f":"IFERROR(INDEX(ПланировщикСобытий[],MATCH($H$24&\"|\"&ROW(A5),ПланировщикСобытий[УНИКАЛЬНОЕ ЗНАЧЕНИЕ (ВЫЧИСЛЯЕМОЕ)],0),3),\"\")","v":""}]
[null,"Перерыв",null,null,{"$f":"'Интервалы времени'!E25","v":"11:30:00"},{"$f":"IFERROR(INDEX(ПланировщикСобытий[],MATCH(DATEVALUE(ЗначДаты)&РаспорядокДня[[#This Row],[Время]],ПоискДатыИВремени,0),3),\"\")","v":""},null,{"$f":"IFERROR(TEXT(DATEVALUE(ЗначДаты)+5,\"ДДДД\"),\"\")","v":"вторник"},{"$f":"IFERROR(INDEX(ПланировщикСобытий[],MATCH($H$29&\"|\"&ROW(A1),ПланировщикСобытий[УНИКАЛЬНОЕ ЗНАЧЕНИЕ (ВЫЧИСЛЯЕМОЕ)],0),2),\"\")","v":""},{"$f":"IFERROR(INDEX(ПланировщикСобытий[],MATCH($H$29&\"|\"&ROW(A1),ПланировщикСобытий[УНИКАЛЬНОЕ ЗНАЧЕНИЕ (ВЫЧИСЛЯЕМОЕ)],0),3),\"\")","v":""}]
[{"$nulls":4},{"$f":"'Интервалы времени'!E26","v":"11:45:00"},{"$f":"IFERROR(INDEX(ПланировщикСобытий[],MATCH(DATEVALUE(ЗначДаты)&РаспорядокДня[[#This Row],[Время]],ПоискДатыИВремени,0),3),\"\")","v":""},null,{"$f":"IFERROR(TEXT(DATEVALUE(ЗначДаты)+5,\"Д\"),\"\")","v":"28"},{"$f":"IFERROR(INDEX(ПланировщикСобытий[],MATCH($H$29&\"|\"&ROW(A2),ПланировщикСобытий[УНИКАЛЬНОЕ ЗНАЧЕНИЕ (ВЫЧИСЛЯЕМОЕ)],0),2),\"\")","v":""},{"$f":"IFERROR(INDEX(ПланировщикСобытий[],MATCH($H$29&\"|\"&ROW(A2),ПланировщикСобытий[УНИКАЛЬНОЕ ЗНАЧЕНИЕ (ВЫЧИСЛЯЕМОЕ)],0),3),\"\")","v":""}]
[{"$nulls":4},{"$f":"'Интервалы времени'!E27","v":"12:00:00"},{"$f":"IFERROR(INDEX(ПланировщикСобытий[],MATCH(DATEVALUE(ЗначДаты)&РаспорядокДня[[#This Row],[Время]],ПоискДатыИВремени,0),3),\"\")","v":"Обед"},null,null,{"$f":"IFERROR(INDEX(ПланировщикСобытий[],MATCH($H$29&\"|\"&ROW(A3),ПланировщикСобытий[УНИКАЛЬНОЕ ЗНАЧЕНИЕ (ВЫЧИСЛЯЕМОЕ)],0),2),\"\")","v":""},{"$f":"IFERROR(INDEX(ПланировщикСобытий[],MATCH($H$29&\"|\"&ROW(A3),ПланировщикСобытий[УНИКАЛЬНОЕ ЗНАЧЕНИЕ (ВЫЧИСЛЯЕМОЕ)],0),3),\"\")","v":""}]
[{"$nulls":4},{"$f":"'Интервалы времени'!E28","v":"12:15:00"},{"$f":"IFERROR(INDEX(ПланировщикСобытий[],MATCH(DATEVALUE(ЗначДаты)&РаспорядокДня[[#This Row],[Время]],ПоискДатыИВремени,0),3),\"\")","v":""},null,{"$f":"IFERROR(ЗначДаты+5,\"\")","v":"2022-06-28"},{"$f":"IFERROR(INDEX(ПланировщикСобытий[],MATCH($H$29&\"|\"&ROW(A4),ПланировщикСобытий[УНИКАЛЬНОЕ ЗНАЧЕНИЕ (ВЫЧИСЛЯЕМОЕ)],0),2),\"\")","v":""},{"$f":"IFERROR(INDEX(ПланировщикСобытий[],MATCH($H$29&\"|\"&ROW(A4),ПланировщикСобытий[УНИКАЛЬНОЕ ЗНАЧЕНИЕ (ВЫЧИСЛЯЕМОЕ)],0),3),\"\")","v":""}]
[{"$nulls":4},{"$f":"'Интервалы времени'!E29","v":"12:30:00"},{"$f":"IFERROR(INDEX(ПланировщикСобытий[],MATCH(DATEVALUE(ЗначДаты)&РаспорядокДня[[#This Row],[Время]],ПоискДатыИВремени,0),3),\"\")","v":""},null,null,{"$f":"IFERROR(INDEX(ПланировщикСобытий[],MATCH($H$29&\"|\"&ROW(A5),ПланировщикСобытий[УНИКАЛЬНОЕ ЗНАЧЕНИЕ (ВЫЧИСЛЯЕМОЕ)],0),2),\"\")","v":""},{"$f":"IFERROR(INDEX(ПланировщикСобытий[],MATCH($H$29&\"|\"&ROW(A5),ПланировщикСобытий[УНИКАЛЬНОЕ ЗНАЧЕНИЕ (ВЫЧИСЛЯЕМОЕ)],0),3),\"\")","v":""}]
[{"$nulls":4},{"$f":"'Интервалы времени'!E30","v":"12:45:00"},{"$f":"IFERROR(INDEX(ПланировщикСобытий[],MATCH(DATEVALUE(ЗначДаты)&РаспорядокДня[[#This Row],[Время]],ПоискДатыИВремени,0),3),\"\")","v":""},null,{"$f":"IFERROR(TEXT(DATEVALUE(ЗначДаты)+6,\"ДДДД\"),\"\")","v":"среда"},{"$f":"IFERROR(INDEX(ПланировщикСобытий[],MATCH($H$34&\"|\"&ROW(A1),ПланировщикСобытий[УНИКАЛЬНОЕ ЗНАЧЕНИЕ (ВЫЧИСЛЯЕМОЕ)],0),2),\"\")","v":""},{"$f":"IFERROR(INDEX(ПланировщикСобытий[],MATCH($H$34&\"|\"&ROW(A1),ПланировщикСобытий[УНИКАЛЬНОЕ ЗНАЧЕНИЕ (ВЫЧИСЛЯЕМОЕ)],0),3),\"\")","v":""}]
[{"$nulls":4},{"$f":"'Интервалы времени'!E31","v":"13:00:00"},{"$f":"IFERROR(INDEX(ПланировщикСобытий[],MATCH(DATEVALUE(ЗначДаты)&РаспорядокДня[[#This Row],[Время]],ПоискДатыИВремени,0),3),\"\")","v":""},null,{"$f":"IFERROR(TEXT(DATEVALUE(ЗначДаты)+6,\"Д\"),\"\")","v":"29"},{"$f":"IFERROR(INDEX(ПланировщикСобытий[],MATCH($H$34&\"|\"&ROW(A2),ПланировщикСобытий[УНИКАЛЬНОЕ ЗНАЧЕНИЕ (ВЫЧИСЛЯЕМОЕ)],0),2),\"\")","v":""},{"$f":"IFERROR(INDEX(ПланировщикСобытий[],MATCH($H$34&\"|\"&ROW(A2),ПланировщикСобытий[УНИКАЛЬНОЕ ЗНАЧЕНИЕ (ВЫЧИСЛЯЕМОЕ)],0),3),\"\")","v":""}]
[{"$nulls":4},{"$f":"'Интервалы времени'!E32","v":"13:15:00"},{"$f":"IFERROR(INDEX(ПланировщикСобытий[],MATCH(DATEVALUE(ЗначДаты)&РаспорядокДня[[#This Row],[Время]],ПоискДатыИВремени,0),3),\"\")","v":""},null,null,{"$f":"IFERROR(INDEX(ПланировщикСобытий[],MATCH($H$34&\"|\"&ROW(A3),ПланировщикСобытий[УНИКАЛЬНОЕ ЗНАЧЕНИЕ (ВЫЧИСЛЯЕМОЕ)],0),2),\"\")","v":""},{"$f":"IFERROR(INDEX(ПланировщикСобытий[],MATCH($H$34&\"|\"&ROW(A3),ПланировщикСобытий[УНИКАЛЬНОЕ ЗНАЧЕНИЕ (ВЫЧИСЛЯЕМОЕ)],0),3),\"\")","v":""}]
[{"$nulls":4},{"$f":"'Интервалы времени'!E33","v":"13:30:00"},{"$f":"IFERROR(INDEX(ПланировщикСобытий[],MATCH(DATEVALUE(ЗначДаты)&РаспорядокДня[[#This Row],[Время]],ПоискДатыИВремени,0),3),\"\")","v":"Рабочие звонки"},null,{"$f":"IFERROR(ЗначДаты+6,\"\")","v":"2022-06-29"},{"$f":"IFERROR(INDEX(ПланировщикСобытий[],MATCH($H$34&\"|\"&ROW(A4),ПланировщикСобытий[УНИКАЛЬНОЕ ЗНАЧЕНИЕ (ВЫЧИСЛЯЕМОЕ)],0),2),\"\")","v":""},{"$f":"IFERROR(INDEX(ПланировщикСобытий[],MATCH($H$34&\"|\"&ROW(A4),ПланировщикСобытий[УНИКАЛЬНОЕ ЗНАЧЕНИЕ (ВЫЧИСЛЯЕМОЕ)],0),3),\"\")","v":""}]
[{"$nulls":4},{"$f":"'Интервалы времени'!E34","v":"13:45:00"},{"$f":"IFERROR(INDEX(ПланировщикСобытий[],MATCH(DATEVALUE(ЗначДаты)&РаспорядокДня[[#This Row],[Время]],ПоискДатыИВремени,0),3),\"\")","v":""},null,null,{"$f":"IFERROR(INDEX(ПланировщикСобытий[],MATCH($H$34&\"|\"&ROW(A5),ПланировщикСобытий[УНИКАЛЬНОЕ ЗНАЧЕНИЕ (ВЫЧИСЛЯЕМОЕ)],0),2),\"\")","v":""},{"$f":"IFERROR(INDEX(ПланировщикСобытий[],MATCH($H$34&\"|\"&ROW(A5),ПланировщикСобытий[УНИКАЛЬНОЕ ЗНАЧЕНИЕ (ВЫЧИСЛЯЕМОЕ)],0),3),\"\")","v":""}]
[{"$nulls":4},{"$f":"'Интервалы времени'!E35","v":"14:00:00"},{"$f":"IFERROR(INDEX(ПланировщикСобытий[],MATCH(DATEVALUE(ЗначДаты)&РаспорядокДня[[#This Row],[Время]],ПоискДатыИВремени,0),3),\"\")","v":""}]
[{"$nulls":4},{"$f":"'Интервалы времени'!E36","v":"14:15:00"},{"$f":"IFERROR(INDEX(ПланировщикСобытий[],MATCH(DATEVALUE(ЗначДаты)&РаспорядокДня[[#This Row],[Время]],ПоискДатыИВремени,0),3),\"\")","v":""}]
[{"$nulls":4},{"$f":"'Интервалы времени'!E37","v":"14:30:00"},{"$f":"IFERROR(INDEX(ПланировщикСобытий[],MATCH(DATEVALUE(ЗначДаты)&РаспорядокДня[[#This Row],[Время]],ПоискДатыИВремени,0),3),\"\")","v":""}]
[{"$nulls":4},{"$f":"'Интервалы времени'!E38","v":"14:45:00"},{"$f":"IFERROR(INDEX(ПланировщикСобытий[],MATCH(DATEVALUE(ЗначДаты)&РаспорядокДня[[#This Row],[Время]],ПоискДатыИВремени,0),3),\"\")","v":""}]
[{"$nulls":4},{"$f":"'Интервалы времени'!E39","v":"15:00:00"},{"$f":"IFERROR(INDEX(ПланировщикСобытий[],MATCH(DATEVALUE(ЗначДаты)&РаспорядокДня[[#This Row],[Время]],ПоискДатыИВремени,0),3),\"\")","v":"Перерыв"}]
[{"$nulls":4},{"$f":"'Интервалы времени'!E40","v":"15:15:00"},{"$f":"IFERROR(INDEX(ПланировщикСобытий[],MATCH(DATEVALUE(ЗначДаты)&РаспорядокДня[[#This Row],[Время]],ПоискДатыИВремени,0),3),\"\")","v":""}]
[{"$nulls":4},{"$f":"'Интервалы времени'!E41","v":"15:30:00"},{"$f":"IFERROR(INDEX(ПланировщикСобытий[],MATCH(DATEVALUE(ЗначДаты)&РаспорядокДня[[#This Row],[Время]],ПоискДатыИВремени,0),3),\"\")","v":""}]
[{"$nulls":4},{"$f":"'Интервалы времени'!E42","v":"15:45:00"},{"$f":"IFERROR(INDEX(ПланировщикСобытий[],MATCH(DATEVALUE(ЗначДаты)&РаспорядокДня[[#This Row],[Время]],ПоискДатыИВремени,0),3),\"\")","v":""}]
[{"$nulls":4},{"$f":"'Интервалы времени'!E43","v":"16:00:00"},{"$f":"IFERROR(INDEX(ПланировщикСобытий[],MATCH(DATEVALUE(ЗначДаты)&РаспорядокДня[[#This Row],[Время]],ПоискДатыИВремени,0),3),\"\")","v":""}]
[{"$nulls":4},{"$f":"'Интервалы времени'!E44","v":"16:15:00"},{"$f":"IFERROR(INDEX(ПланировщикСобытий[],MATCH(DATEVALUE(ЗначДаты)&РаспорядокДня[[#This Row],[Время]],ПоискДатыИВремени,0),3),\"\")","v":""}]
[{"$nulls":4},{"$f":"'Интервалы времени'!E45","v":"16:30:00"},{"$f":"IFERROR(INDEX(ПланировщикСобытий[],MATCH(DATEVALUE(ЗначДаты)&РаспорядокДня[[#This Row],[Время]],ПоискДатыИВремени,0),3),\"\")","v":""}]
[{"$nulls":4},{"$f":"'Интервалы времени'!E46","v":"16:45:00"},{"$f":"IFERROR(INDEX(ПланировщикСобытий[],MATCH(DATEVALUE(ЗначДаты)&РаспорядокДня[[#This Row],[Время]],ПоискДатыИВремени,0),3),\"\")","v":""}]
[{"$nulls":4},{"$f":"'Интервалы времени'!E47","v":"17:00:00"},{"$f":"IFERROR(INDEX(ПланировщикСобытий[],MATCH(DATEVALUE(ЗначДаты)&РаспорядокДня[[#This Row],[Время]],ПоискДатыИВремени,0),3),\"\")","v":"Возвращение домой"}]
[{"$nulls":4},{"$f":"'Интервалы времени'!E48","v":"17:15:00"},{"$f":"IFERROR(INDEX(ПланировщикСобытий[],MATCH(DATEVALUE(ЗначДаты)&РаспорядокДня[[#This Row],[Время]],ПоискДатыИВремени,0),3),\"\")","v":""}]
[{"$nulls":4},{"$f":"'Интервалы времени'!E49","v":"17:30:00"},{"$f":"IFERROR(INDEX(ПланировщикСобытий[],MATCH(DATEVALUE(ЗначДаты)&РаспорядокДня[[#This Row],[Время]],ПоискДатыИВремени,0),3),\"\")","v":""}]
[{"$nulls":4},{"$f":"'Интервалы времени'!E50","v":"17:45:00"},{"$f":"IFERROR(INDEX(ПланировщикСобытий[],MATCH(DATEVALUE(ЗначДаты)&РаспорядокДня[[#This Row],[Время]],ПоискДатыИВремени,0),3),\"\")","v":""}]
[{"$nulls":4},{"$f":"'Интервалы времени'!E51","v":"18:00:00"},{"$f":"IFERROR(INDEX(ПланировщикСобытий[],MATCH(DATEVALUE(ЗначДаты)&РаспорядокДня[[#This Row],[Время]],ПоискДатыИВремени,0),3),\"\")","v":"Тренировка по футболу"}]
[{"$nulls":4},{"$f":"'Интервалы времени'!E52","v":"18:15:00"},{"$f":"IFERROR(INDEX(ПланировщикСобытий[],MATCH(DATEVALUE(ЗначДаты)&РаспорядокДня[[#This Row],[Время]],ПоискДатыИВремени,0),3),\"\")","v":""}]
[{"$nulls":4},{"$f":"'Интервалы времени'!E53","v":"18:30:00"},{"$f":"IFERROR(INDEX(ПланировщикСобытий[],MATCH(DATEVALUE(ЗначДаты)&РаспорядокДня[[#This Row],[Время]],ПоискДатыИВремени,0),3),\"\")","v":""}]
[{"$nulls":4},{"$f":"'Интервалы времени'!E54","v":"18:45:00"},{"$f":"IFERROR(INDEX(ПланировщикСобытий[],MATCH(DATEVALUE(ЗначДаты)&РаспорядокДня[[#This Row],[Время]],ПоискДатыИВремени,0),3),\"\")","v":""}]
[{"$nulls":4},{"$f":"'Интервалы времени'!E55","v":"19:00:00"},{"$f":"IFERROR(INDEX(ПланировщикСобытий[],MATCH(DATEVALUE(ЗначДаты)&РаспорядокДня[[#This Row],[Время]],ПоискДатыИВремени,0),3),\"\")","v":""}]
[{"$nulls":4},{"$f":"'Интервалы времени'!E56","v":"19:15:00"},{"$f":"IFERROR(INDEX(ПланировщикСобытий[],MATCH(DATEVALUE(ЗначДаты)&РаспорядокДня[[#This Row],[Время]],ПоискДатыИВремени,0),3),\"\")","v":""}]
[{"$nulls":4},{"$f":"'Интервалы времени'!E57","v":"19:30:00"},{"$f":"IFERROR(INDEX(ПланировщикСобытий[],MATCH(DATEVALUE(ЗначДаты)&РаспорядокДня[[#This Row],[Время]],ПоискДатыИВремени,0),3),\"\")","v":""}]
[{"$nulls":4},{"$f":"'Интервалы времени'!E58","v":"19:45:00"},{"$f":"IFERROR(INDEX(ПланировщикСобытий[],MATCH(DATEVALUE(ЗначДаты)&РаспорядокДня[[#This Row],[Время]],ПоискДатыИВремени,0),3),\"\")","v":""}]
[{"$nulls":4},{"$f":"'Интервалы времени'!E59","v":"20:00:00"},{"$f":"IFERROR(INDEX(ПланировщикСобытий[],MATCH(DATEVALUE(ЗначДаты)&РаспорядокДня[[#This Row],[Время]],ПоискДатыИВремени,0),3),\"\")","v":""}]
[{"$nulls":4},{"$f":"'Интервалы времени'!E60","v":"20:15:00"},{"$f":"IFERROR(INDEX(ПланировщикСобытий[],MATCH(DATEVALUE(ЗначДаты)&РаспорядокДня[[#This Row],[Время]],ПоискДатыИВремени,0),3),\"\")","v":""}]
[{"$nulls":4},{"$f":"'Интервалы времени'!E61","v":"20:30:00"},{"$f":"IFERROR(INDEX(ПланировщикСобытий[],MATCH(DATEVALUE(ЗначДаты)&РаспорядокДня[[#This Row],[Время]],ПоискДатыИВремени,0),3),\"\")","v":""}]
[{"$nulls":4},{"$f":"'Интервалы времени'!E62","v":"20:45:00"},{"$f":"IFERROR(INDEX(ПланировщикСобытий[],MATCH(DATEVALUE(ЗначДаты)&РаспорядокДня[[#This Row],[Время]],ПоискДатыИВремени,0),3),\"\")","v":""}]
[{"$nulls":4},{"$f":"'Интервалы времени'!E63","v":"21:00:00"},{"$f":"IFERROR(INDEX(ПланировщикСобытий[],MATCH(DATEVALUE(ЗначДаты)&РаспорядокДня[[#This Row],[Время]],ПоискДатыИВремени,0),3),\"\")","v":""}]
[{"$nulls":4},{"$f":"'Интервалы времени'!E64","v":""},{"$f":"IFERROR(INDEX(ПланировщикСобытий[],MATCH(DATEVALUE(ЗначДаты)&РаспорядокДня[[#This Row],[Время]],ПоискДатыИВремени,0),3),\"\")","v":""}]
[{"$nulls":4},{"$f":"'Интервалы времени'!E65","v":""},{"$f":"IFERROR(INDEX(ПланировщикСобытий[],MATCH(DATEVALUE(ЗначДаты)&РаспорядокДня[[#This Row],[Время]],ПоискДатыИВремени,0),3),\"\")","v":""}]
[{"$nulls":4},{"$f":"'Интервалы времени'!E66","v":""},{"$f":"IFERROR(INDEX(ПланировщикСобытий[],MATCH(DATEVALUE(ЗначДаты)&РаспорядокДня[[#This Row],[Время]],ПоискДатыИВремени,0),3),\"\")","v":""}]
[{"$nulls":4},{"$f":"'Интервалы времени'!E67","v":""},{"$f":"IFERROR(INDEX(ПланировщикСобытий[],MATCH(DATEVALUE(ЗначДаты)&РаспорядокДня[[#This Row],[Время]],ПоискДатыИВремени,0),3),\"\")","v":""}]
[{"$nulls":4},{"$f":"'Интервалы времени'!E68","v":""},{"$f":"IFERROR(INDEX(ПланировщикСобытий[],MATCH(DATEVALUE(ЗначДаты)&РаспорядокДня[[#This Row],[Время]],ПоискДатыИВремени,0),3),\"\")","v":""}]
[{"$nulls":4},{"$f":"'Интервалы времени'!E69","v":""},{"$f":"IFERROR(INDEX(ПланировщикСобытий[],MATCH(DATEVALUE(ЗначДаты)&РаспорядокДня[[#This Row],[Время]],ПоискДатыИВремени,0),3),\"\")","v":""}]
[{"$nulls":4},{"$f":"'Интервалы времени'!E70","v":""},{"$f":"IFERROR(INDEX(ПланировщикСобытий[],MATCH(DATEVALUE(ЗначДаты)&РаспорядокДня[[#This Row],[Время]],ПоискДатыИВремени,0),3),\"\")","v":""}]
[{"$nulls":4},{"$f":"'Интервалы времени'!E71","v":""},{"$f":"IFERROR(INDEX(ПланировщикСобытий[],MATCH(DATEVALUE(ЗначДаты)&РаспорядокДня[[#This Row],[Время]],ПоискДатыИВремени,0),3),\"\")","v":""}]
[{"$nulls":4},{"$f":"'Интервалы времени'!E72","v":""},{"$f":"IFERROR(INDEX(ПланировщикСобытий[],MATCH(DATEVALUE(ЗначДаты)&РаспорядокДня[[#This Row],[Время]],ПоискДатыИВремени,0),3),\"\")","v":""}]
[{"$nulls":4},{"$f":"'Интервалы времени'!E73","v":""},{"$f":"IFERROR(INDEX(ПланировщикСобытий[],MATCH(DATEVALUE(ЗначДаты)&РаспорядокДня[[#This Row],[Время]],ПоискДатыИВремени,0),3),\"\")","v":""}]
[{"$nulls":4},{"$f":"'Интервалы времени'!E74","v":""},{"$f":"IFERROR(INDEX(ПланировщикСобытий[],MATCH(DATEVALUE(ЗначДаты)&РаспорядокДня[[#This Row],[Время]],ПоискДатыИВремени,0),3),\"\")","v":""}]
[{"$nulls":4},{"$f":"'Интервалы времени'!E75","v":""},{"$f":"IFERROR(INDEX(ПланировщикСобытий[],MATCH(DATEVALUE(ЗначДаты)&РаспорядокДня[[#This Row],[Время]],ПоискДатыИВремени,0),3),\"\")","v":""}]

{"sheet":"Планировщик событий","index":1,"n_rows":15,"n_cols":8,"rows_kept":15,"merged":[[0,1,0,2],[1,1,4,2],[5,1,6,2],[7,1,7,2]]}
[null,"Планировщик событий"]
[null,{"$f":"DAY(ЗначДаты)","v":23},null,null,"ДАТА","ВРЕМЯ","ОПИСАНИЕ","УНИКАЛЬНОЕ ЗНАЧЕНИЕ (ВЫЧИСЛЯЕМОЕ)"]
[{"$nulls":4},{"$f":"TODAY()","v":"2022-06-23"},"06:00:00","Подъем",{"$f":"ПланировщикСобытий[[#This Row],[ДАТА]]&\"|\"&COUNTIF($E$3:E3,E3)","v":"44735|1"}]
[{"$nulls":4},{"$f":"TODAY()","v":"2022-06-23"},"06:30:00","Душ",{"$f":"ПланировщикСобытий[[#This Row],[ДАТА]]&\"|\"&COUNTIF($E$3:E4,E4)","v":"44735|2"}]
[{"$nulls":4},"2022-06-23","07:30:00","Выход на работу",{"$f":"ПланировщикСобытий[[#This Row],[ДАТА]]&\"|\"&COUNTIF($E$3:E5,E5)","v":"44735|3"}]
[null,{"$f":"TEXT(ЗначДаты,\"ДДДД\")","v":"четверг"},null,null,"2022-06-23","08:00:00","Начало смены",{"$f":"ПланировщикСобытий[[#This Row],[ДАТА]]&\"|\"&COUNTIF($E$3:E6,E6)","v":"44735|4"}]
[{"$nulls":4},"2022-06-23","10:00:00","Перерыв",{"$f":"ПланировщикСобытий[[#This Row],[ДАТА]]&\"|\"&COUNTIF($E$3:E7,E7)","v":"44735|5"}]
[null,{"$f":"ЗначДаты","v":"23 ИЮНЬ 2022 "},null,null,"2022-06-23","12:00:00","Обед",{"$f":"ПланировщикСобытий[[#This Row],[ДАТА]]&\"|\"&COUNTIF($E$3:E8,E8)","v":"44735|6"}]
[{"$nulls":4},"2022-06-23","13:00:00","Возвращение на работу",{"$f":"ПланировщикСобытий[[#This Row],[ДАТА]]&\"|\"&COUNTIF($E$3:E9,E9)","v":"44735|7"}]
[null,"Выберите для изменения интервалов времени",null,null,"2022-06-23","13:30:00","Рабочие звонки",{"$f":"ПланировщикСобытий[[#This Row],[ДАТА]]&\"|\"&COUNTIF($E$3:E10,E10)","v":"44735|8"}]
[{"$nulls":4},"2022-06-23","15:00:00","Перерыв",{"$f":"ПланировщикСобытий[[#This Row],[ДАТА]]&\"|\"&COUNTIF($E$3:E11,E11)","v":"44735|9"}]
[null,"Выберите для просмотра распорядка дня",null,null,"2022-06-23","17:00:00","Возвращение домой",{"$f":"ПланировщикСобытий[[#This Row],[ДАТА]]&\"|\"&COUNTIF($E$3:E12,E12)","v":"44735|10"}]
[{"$nulls":4},"2022-06-23","18:00:00","Тренировка по футболу",{"$f":"ПланировщикСобытий[[#This Row],[ДАТА]]&\"|\"&COUNTIF($E$3:E13,E13)","v":"44735|11"}]
[{"$nulls":4},{"$f":"TODAY()+1","v":"2022-06-24"},"06:30:00","Завтрак",{"$f":"ПланировщикСобытий[[#This Row],[ДАТА]]&\"|\"&COUNTIF($E$3:E15,E14)","v":"44736|2"}]
[{"$nulls":4},{"$f":"TODAY()+1","v":"2022-06-24"},"07:30:00","Выход на работу",{"$f":"ПланировщикСобытий[[#This Row],[ДАТА]]&\"|\"&COUNTIF($E$3:E15,E15)","v":"44736|2"}]

{"sheet":"Интервалы времени","index":2,"n_rows":75,"n_cols":5,"rows_kept":75,"merged":[[0,1,0,2],[1,1,1,2],[9,1,9,2]]}
[null,"Интервалы времени"]
[null,"ИЗМЕНЕНИЕ ТАБЛИЦЫ ВРЕМЕНИ",null,null,"Время"]
[{"$nulls":4},{"$f":"Время_начала","v":"06:00:00"}]
[null,"Время начала","06:00:00",null,{"$f":"IFERROR(IF($E3+Приращение>ВремяОконч,\"\",$E3+Приращение),\"\")","v":"06:15:00"}]
[{"$nulls":4},"06:30:00"]
[null,"Интервал","15 МИН",null,"06:45:00"]
[{"$nulls":4},"07:00:00"]
[null,"Время окончания","21:00:00",null,"07:15:00"]
[{"$nulls":4},"07:30:00"]
[null,"ПРОСМОТР РАСПИСАНИЯ",null,null,"07:45:00"]
[{"$nulls":4},"08:00:00"]
[null,"Выберите для просмотра распорядка дня",null,null,"08:15:00"]
[{"$nulls":4},"08:30:00"]
[null,"Выберите для добавления нового события",null,null,"08:45:00"]
[{"$nulls":4},"09:00:00"]
[{"$nulls":4},"09:15:00"]
[{"$nulls":4},"09:30:00"]
[{"$nulls":4},"09:45:00"]
[{"$nulls":4},"10:00:00"]
[{"$nulls":4},"10:15:00"]
[{"$nulls":4},"10:30:00"]
[{"$nulls":4},"10:45:00"]
[{"$nulls":4},"11:00:00"]
[{"$nulls":4},"11:15:00"]
[{"$nulls":4},"11:30:00"]
[{"$nulls":4},"11:45:00"]
[{"$nulls":4},"12:00:00"]
[{"$nulls":4},"12:15:00"]
[{"$nulls":4},"12:30:00"]
[{"$nulls":4},"12:45:00"]
[{"$nulls":4},"13:00:00"]
[{"$nulls":4},"13:15:00"]
[{"$nulls":4},"13:30:00"]
[{"$nulls":4},"13:45:00"]
[{"$nulls":4},"14:00:00"]
[{"$nulls":4},{"$f":"IFERROR(IF($E35+Приращение>ВремяОконч,\"\",$E35+Приращение),\"\")","v":"14:15:00"}]
[{"$nulls":4},"14:30:00"]
[{"$nulls":4},"14:45:00"]
[{"$nulls":4},"15:00:00"]
[{"$nulls":4},"15:15:00"]
[{"$nulls":4},"15:30:00"]
[{"$nulls":4},"15:45:00"]
[{"$nulls":4},"16:00:00"]
[{"$nulls":4},"16:15:00"]
[{"$nulls":4},"16:30:00"]
[{"$nulls":4},"16:45:00"]
[{"$nulls":4},"17:00:00"]
[{"$nulls":4},"17:15:00"]
[{"$nulls":4},"17:30:00"]
[{"$nulls":4},"17:45:00"]
[{"$nulls":4},"18:00:00"]
[{"$nulls":4},"18:15:00"]
[{"$nulls":4},"18:30:00"]
[{"$nulls":4},"18:45:00"]
[{"$nulls":4},"19:00:00"]
[{"$nulls":4},"19:15:00"]
[{"$nulls":4},"19:30:00"]
[{"$nulls":4},"19:45:00"]
[{"$nulls":4},"20:00:00"]
[{"$nulls":4},"20:15:00"]
[{"$nulls":4},"20:30:00"]
[{"$nulls":4},"20:45:00"]
[{"$nulls":4},"21:00:00"]
[{"$nulls":4},""]
[{"$nulls":4},""]
[{"$nulls":4},""]
[{"$nulls":4},""]
[{"$nulls":4},{"$f":"IFERROR(IF($E67+Приращение>ВремяОконч,\"\",$E67+Приращение),\"\")","v":""}]
[{"$nulls":4},""]
[{"$nulls":4},""]
[{"$nulls":4},""]
[{"$nulls":4},""]
[{"$nulls":4},""]
[{"$nulls":4},""]
[{"$nulls":4},""]